[Event "Early-Titled-Tuesday-Blitz-March-19-2024"]
[Site "Chess.com"]
[Date "2024.03.19"]
[Round "10"]
[White "cthulhuuu"]
[Black "Iskusnyh"]
[Result "0-1"]
[WhiteElo "2405"]
[BlackElo "2643"]
[TimeControl "180+1"]
[EndTime "9:55:32 PDT"]
[Termination "Iskusnyh won by resignation"]

1. e4 {[%clk 0:02:59.3]} 1... e6 {[%clk 0:02:59.7]} 2. d3 {[%clk 0:02:59.5]}
2... c5 {[%clk 0:02:57.4]} 3. Nf3 {[%clk 0:02:59.9]} 3... Nc6 {[%clk 0:02:56.5]}
4. g3 {[%clk 0:03:00.3]} 4... g6 {[%clk 0:02:56.8]} 5. Bg2 {[%clk 0:03:00.7]}
5... Bg7 {[%clk 0:02:57.2]} 6. O-O {[%clk 0:03:01.3]} 6... Nge7 {[%clk
0:02:54.2]} 7. Re1 {[%clk 0:03:00.7]} 7... e5 {[%clk 0:02:52.4]} 8. Nc3 {[%clk
0:03:00]} 8... O-O {[%clk 0:02:51.4]} 9. Nd2 {[%clk 0:03:00.5]} 9... d6 {[%clk
0:02:48.5]} 10. Nc4 {[%clk 0:03:00.9]} 10... Be6 {[%clk 0:02:46.4]} 11. Nd5
{[%clk 0:03:01]} 11... Qd7 {[%clk 0:02:43.7]} 12. a4 {[%clk 0:02:58.5]} 12... f5
{[%clk 0:02:41.3]} 13. f4 {[%clk 0:02:54.4]} 13... Kh8 {[%clk 0:02:29.9]} 14. c3
{[%clk 0:02:41.9]} 14... Bg8 {[%clk 0:02:21.7]} 15. a5 {[%clk 0:02:40.5]} 15...
fxe4 {[%clk 0:02:09.1]} 16. dxe4 {[%clk 0:02:41.4]} 16... exf4 {[%clk
0:02:07.5]} 17. Bxf4 {[%clk 0:02:35.1]} 17... Ne5 {[%clk 0:01:45]} 18. Nxe5
{[%clk 0:02:05.7]} 18... dxe5 {[%clk 0:01:44]} 19. Be3 {[%clk 0:02:02.2]} 19...
Rac8 {[%clk 0:01:33.6]} 20. c4 {[%clk 0:02:01.5]} 20... Qd6 {[%clk 0:01:08.5]}
21. Qb3 {[%clk 0:01:53.4]} 21... Rb8 {[%clk 0:00:57.9]} 22. Qb5 {[%clk 0:01:53]}
22... b6 {[%clk 0:00:49.6]} 23. axb6 {[%clk 0:01:52.4]} 23... axb6 {[%clk
0:00:50.5]} 24. Ra6 {[%clk 0:01:47.7]} 24... Nxd5 {[%clk 0:00:48.7]} 25. cxd5
{[%clk 0:01:46.3]} 25... Bf7 {[%clk 0:00:44.1]} 26. b4 {[%clk 0:00:52.3]} 26...
Be8 {[%clk 0:00:34.9]} 27. bxc5 {[%clk 0:00:51.9]} 27... Bxb5 {[%clk 0:00:33.4]}
28. cxd6 {[%clk 0:00:45.6]} 28... Bxa6 {[%clk 0:00:33.2]} 29. Ra1 {[%clk
0:00:36.9]} 29... Bb5 {[%clk 0:00:27.3]} 30. Bh3 {[%clk 0:00:35.9]} 30... Rfd8
{[%clk 0:00:26.1]} 31. Bg5 {[%clk 0:00:22.8]} 31... Rxd6 {[%clk 0:00:22.6]} 32.
Be7 {[%clk 0:00:23]} 32... Rdd8 {[%clk 0:00:22.3]} 33. Bxd8 {[%clk 0:00:22.6]}
33... Rxd8 {[%clk 0:00:23.2]} 34. Rb1 {[%clk 0:00:23]} 34... Bd3 {[%clk
0:00:22.6]} 35. Rxb6 {[%clk 0:00:23.2]} 35... Bxe4 {[%clk 0:00:22.4]} 36. d6
{[%clk 0:00:23.5]} 36... Bf5 {[%clk 0:00:20.3]} 37. Bg2 {[%clk 0:00:13.9]} 37...
e4 {[%clk 0:00:20.1]} 38. g4 {[%clk 0:00:11.1]} 38... Bd4+ {[%clk 0:00:19.6]}
39. Kf1 {[%clk 0:00:11.4]} 39... Bxb6 {[%clk 0:00:19.5]} 40. gxf5 {[%clk
0:00:11.8]} 40... Rxd6 {[%clk 0:00:19.7]} 0-1

[Event "Early-Titled-Tuesday-Blitz-March-19-2024"]
[Site "Chess.com"]
[Date "2024.03.19"]
[Round "10"]
[White "ChempionBg"]
[Black "mary-sanna"]
[Result "0-1"]
[WhiteElo "2331"]
[BlackElo "2212"]
[TimeControl "180+1"]
[EndTime "9:55:32 PDT"]
[Termination "mary-sanna won by checkmate"]

1. d4 {[%clk 0:02:25]} 1... d5 {[%clk 0:02:58.8]} 2. c4 {[%clk 0:02:22.8]} 2...
e6 {[%clk 0:02:58.2]} 3. Nf3 {[%clk 0:02:21.2]} 3... Nf6 {[%clk 0:02:57.9]} 4.
g3 {[%clk 0:02:20.9]} 4... dxc4 {[%clk 0:02:57.3]} 5. Bg2 {[%clk 0:02:21.3]}
5... Bd7 {[%clk 0:02:55.7]} 6. Ne5 {[%clk 0:02:18.6]} 6... Bc6 {[%clk
0:02:54.9]} 7. Nxc6 {[%clk 0:02:14.6]} 7... Nxc6 {[%clk 0:02:54.9]} 8. Bxc6+
{[%clk 0:02:14.1]} 8... bxc6 {[%clk 0:02:54.8]} 9. O-O {[%clk 0:02:14.4]} 9...
c5 {[%clk 0:02:46.7]} 10. Qa4+ {[%clk 0:02:08.1]} 10... Qd7 {[%clk 0:02:43.3]}
11. Qxc4 {[%clk 0:02:06.5]} 11... cxd4 {[%clk 0:02:42.9]} 12. Rd1 {[%clk
0:02:04.5]} 12... c5 {[%clk 0:02:38]} 13. e3 {[%clk 0:01:19.1]} 13... e5 {[%clk
0:02:27.7]} 14. exd4 {[%clk 0:01:14.2]} 14... cxd4 {[%clk 0:02:24]} 15. f4
{[%clk 0:01:13.1]} 15... Rc8 {[%clk 0:02:15.4]} 16. Qe2 {[%clk 0:01:11.4]} 16...
e4 {[%clk 0:02:11]} 17. Nc3 {[%clk 0:01:06.6]} 17... d3 {[%clk 0:02:04.5]} 18.
Qe1 {[%clk 0:01:02.2]} 18... Bc5+ {[%clk 0:01:41.1]} 19. Be3 {[%clk 0:01:00.4]}
19... O-O {[%clk 0:01:40.6]} 20. Bxc5 {[%clk 0:00:57.5]} 20... Rxc5 {[%clk
0:01:41.5]} 21. Nxe4 {[%clk 0:00:57.5]} 21... Qd4+ {[%clk 0:01:41.4]} 22. Nf2
{[%clk 0:00:57.3]} 22... Rc2 {[%clk 0:01:13.4]} 23. Rxd3 {[%clk 0:00:52.4]}
23... Qxb2 {[%clk 0:01:12.7]} 24. Rb3 {[%clk 0:00:46.4]} 24... Qd4 {[%clk
0:01:09.8]} 25. Rd1 {[%clk 0:00:43.5]} 25... Qc5 {[%clk 0:01:08.4]} 26. Qe3
{[%clk 0:00:27.1]} 26... Qxe3 {[%clk 0:00:56.9]} 27. Rxe3 {[%clk 0:00:26.8]}
27... Rxa2 {[%clk 0:00:57]} 28. Re7 {[%clk 0:00:25.6]} 28... a5 {[%clk 0:00:51]}
29. Ra7 {[%clk 0:00:22.1]} 29... h5 {[%clk 0:00:49.2]} 30. Rb1 {[%clk
0:00:19.1]} 30... Rc8 {[%clk 0:00:35.3]} 31. Rbb7 {[%clk 0:00:13]} 31... Rc1+
{[%clk 0:00:33]} 32. Kg2 {[%clk 0:00:12.5]} 32... Rcc2 {[%clk 0:00:33.1]} 33.
Rxf7 {[%clk 0:00:11.4]} 33... Rxf2+ {[%clk 0:00:33]} 34. Kg1 {[%clk 0:00:10.7]}
34... Rg2+ {[%clk 0:00:32.9]} 35. Kf1 {[%clk 0:00:10.3]} 35... Ne8 {[%clk
0:00:24.7]} 36. Rfe7 {[%clk 0:00:08]} 36... Rgf2+ {[%clk 0:00:15.5]} 37. Ke1
{[%clk 0:00:06.2]} 37... Rxh2 {[%clk 0:00:14.7]} 38. Rxe8+ {[%clk 0:00:05.3]}
38... Kh7 {[%clk 0:00:15.1]} 39. Kd1 {[%clk 0:00:02.9]} 39... Ra1# {[%clk
0:00:14.3]} 0-1

[Event "Early-Titled-Tuesday-Blitz-March-19-2024"]
[Site "Chess.com"]
[Date "2024.03.19"]
[Round "10"]
[White "ljuks68"]
[Black "AlexandraSamaganova"]
[Result "0-1"]
[WhiteElo "2429"]
[BlackElo "2314"]
[TimeControl "180+1"]
[EndTime "9:55:33 PDT"]
[Termination "AlexandraSamaganova won on time"]

1. e4 {[%clk 0:03:00.9]} 1... c5 {[%clk 0:02:58.7]} 2. Nf3 {[%clk 0:03:00.9]}
2... e6 {[%clk 0:02:57]} 3. d4 {[%clk 0:03:00.5]} 3... cxd4 {[%clk 0:02:57.1]}
4. Nxd4 {[%clk 0:03:00.9]} 4... a6 {[%clk 0:02:57.1]} 5. Bd3 {[%clk 0:03:00.5]}
5... Qc7 {[%clk 0:02:50.2]} 6. Qe2 {[%clk 0:03:00.4]} 6... d6 {[%clk 0:02:45.9]}
7. O-O {[%clk 0:02:56.5]} 7... Nf6 {[%clk 0:02:43.6]} 8. c4 {[%clk 0:02:56.4]}
8... Be7 {[%clk 0:02:40.6]} 9. Nc3 {[%clk 0:02:56.4]} 9... Nbd7 {[%clk 0:02:40]}
10. f4 {[%clk 0:02:52.6]} 10... O-O {[%clk 0:02:39]} 11. Bd2 {[%clk 0:02:52.4]}
11... b6 {[%clk 0:02:39.1]} 12. Rae1 {[%clk 0:02:52.3]} 12... Bb7 {[%clk
0:02:37.6]} 13. Kh1 {[%clk 0:02:52.6]} 13... Rac8 {[%clk 0:02:37.3]} 14. b3
{[%clk 0:02:40.3]} 14... Nc5 {[%clk 0:02:00.9]} 15. Bc2 {[%clk 0:02:37.7]} 15...
g6 {[%clk 0:01:56.3]} 16. f5 {[%clk 0:02:09.3]} 16... e5 {[%clk 0:01:44.9]} 17.
Nf3 {[%clk 0:02:06.3]} 17... Kh8 {[%clk 0:01:24]} 18. Nd5 {[%clk 0:01:17.3]}
18... Bxd5 {[%clk 0:01:17.4]} 19. cxd5 {[%clk 0:01:16.8]} 19... Na4 {[%clk
0:00:48]} 20. Bd3 {[%clk 0:01:02.3]} 20... Nc3 {[%clk 0:00:43.3]} 21. Qe3 {[%clk
0:01:01.6]} 21... Ng4 {[%clk 0:00:38.7]} 22. Qg1 {[%clk 0:00:54]} 22... Qc5
{[%clk 0:00:37.2]} 23. h3 {[%clk 0:00:20.5]} 23... Nf6 {[%clk 0:00:28.2]} 24. g4
{[%clk 0:00:18]} 24... Qxg1+ {[%clk 0:00:27.2]} 25. Kxg1 {[%clk 0:00:17.9]}
25... Nxa2 {[%clk 0:00:20]} 26. Ra1 {[%clk 0:00:17.9]} 26... Nc3 {[%clk
0:00:19.6]} 27. Rfe1 {[%clk 0:00:10.7]} 27... b5 {[%clk 0:00:14.6]} 28. Rxa6
{[%clk 0:00:09]} 28... Rc7 {[%clk 0:00:10]} 29. g5 {[%clk 0:00:08.5]} 29... Nh5
{[%clk 0:00:09]} 30. f6 {[%clk 0:00:07.7]} 30... Bd8 {[%clk 0:00:09.4]} 31. Rxd6
{[%clk 0:00:07.8]} 31... Rc8 {[%clk 0:00:06.1]} 32. Nxe5 {[%clk 0:00:07.5]}
32... Bc7 {[%clk 0:00:06]} 33. Rc6 {[%clk 0:00:04.4]} 33... Bxe5 {[%clk
0:00:06]} 34. Rc1 {[%clk 0:00:02.7]} 34... Rxc6 {[%clk 0:00:04.6]} 35. dxc6
{[%clk 0:00:03]} 35... b4 {[%clk 0:00:05.5]} 36. Bc4 {[%clk 0:00:02.8]} 36...
Ng3 {[%clk 0:00:04.6]} 37. Be3 {[%clk 0:00:01.9]} 37... Nge2+ {[%clk 0:00:03.8]}
0-1

[Event "Early-Titled-Tuesday-Blitz-March-19-2024"]
[Site "Chess.com"]
[Date "2024.03.19"]
[Round "10"]
[White "Firouzja2003"]
[Black "MagnusCarlsen"]
[Result "1-0"]
[WhiteElo "3107"]
[BlackElo "3253"]
[TimeControl "180+1"]
[EndTime "9:55:35 PDT"]
[Termination "Firouzja2003 won on time"]

1. Nf3 {[%clk 0:03:00.9]} 1... d5 {[%clk 0:02:59.3]} 2. g3 {[%clk 0:03:00.6]}
2... b6 {[%clk 0:02:58.8]} 3. Bg2 {[%clk 0:03:00.8]} 3... Bb7 {[%clk 0:02:59.4]}
4. O-O {[%clk 0:03:01.5]} 4... Nd7 {[%clk 0:02:54]} 5. d4 {[%clk 0:02:52.6]}
5... Ngf6 {[%clk 0:02:53.9]} 6. c4 {[%clk 0:02:47.4]} 6... dxc4 {[%clk
0:02:53.8]} 7. Na3 {[%clk 0:02:47.8]} 7... c3 {[%clk 0:02:51]} 8. bxc3 {[%clk
0:02:47.2]} 8... e6 {[%clk 0:02:51.8]} 9. c4 {[%clk 0:02:43.6]} 9... Be7 {[%clk
0:02:50.5]} 10. Bb2 {[%clk 0:02:42.3]} 10... O-O {[%clk 0:02:50.7]} 11. Rc1
{[%clk 0:02:39.4]} 11... Qc8 {[%clk 0:02:35.2]} 12. Nb5 {[%clk 0:02:35.4]} 12...
c5 {[%clk 0:02:32.1]} 13. d5 {[%clk 0:02:26.8]} 13... exd5 {[%clk 0:02:32]} 14.
Nh4 {[%clk 0:02:27]} 14... d4 {[%clk 0:01:27]} 15. Nf5 {[%clk 0:02:25.2]} 15...
Re8 {[%clk 0:01:27.5]} 16. Nxe7+ {[%clk 0:01:53.2]} 16... Rxe7 {[%clk
0:01:28.4]} 17. Nd6 {[%clk 0:01:53.4]} 17... Qc7 {[%clk 0:01:28.3]} 18. Nxb7
{[%clk 0:01:33.4]} 18... Rb8 {[%clk 0:01:24.7]} 19. e3 {[%clk 0:01:15.2]} 19...
Ne4 {[%clk 0:00:41.6]} 20. exd4 {[%clk 0:01:11.1]} 20... Qxb7 {[%clk 0:00:37.9]}
21. d5 {[%clk 0:01:01.8]} 21... Nd6 {[%clk 0:00:32.4]} 22. Re1 {[%clk 0:00:46]}
22... Rbe8 {[%clk 0:00:31.7]} 23. Rxe7 {[%clk 0:00:41.6]} 23... Rxe7 {[%clk
0:00:32.6]} 24. Bf1 {[%clk 0:00:26.4]} 24... Ne5 {[%clk 0:00:30.1]} 25. Rc3
{[%clk 0:00:23.6]} 25... Qd7 {[%clk 0:00:28.4]} 26. Qc2 {[%clk 0:00:12.7]} 26...
h6 {[%clk 0:00:24.9]} 27. Re3 {[%clk 0:00:12]} 27... f6 {[%clk 0:00:24.1]} 28.
h3 {[%clk 0:00:11.5]} 28... Nef7 {[%clk 0:00:23.6]} 29. Bc1 {[%clk 0:00:09.4]}
29... Rxe3 {[%clk 0:00:23.2]} 30. Bxe3 {[%clk 0:00:10.3]} 30... Ne5 {[%clk
0:00:23.3]} 31. Be2 {[%clk 0:00:06.5]} 31... Qxh3 {[%clk 0:00:22.3]} 32. Bf4
{[%clk 0:00:05.9]} 32... Qf5 {[%clk 0:00:21.4]} 33. Qa4 {[%clk 0:00:02.3]} 33...
Qb1+ {[%clk 0:00:21.4]} 34. Bf1 {[%clk 0:00:02.9]} 34... Ndxc4 {[%clk
0:00:13.2]} 35. Bxe5 {[%clk 0:00:02.8]} 35... Nxe5 {[%clk 0:00:13]} 36. d6
{[%clk 0:00:03.1]} 36... Qf5 {[%clk 0:00:06]} 37. f4 {[%clk 0:00:02.2]} 37...
Nf7 {[%clk 0:00:02.5]} 38. Qe8+ {[%clk 0:00:01.8]} 38... Kh7 {[%clk 0:00:02.5]}
39. Qxf7 {[%clk 0:00:02.4]} 1-0

[Event "Early-Titled-Tuesday-Blitz-March-19-2024"]
[Site "Chess.com"]
[Date "2024.03.19"]
[Round "10"]
[White "Dacean99"]
[Black "HajiyevKanan"]
[Result "0-1"]
[WhiteElo "2630"]
[BlackElo "2542"]
[TimeControl "180+1"]
[EndTime "9:55:35 PDT"]
[Termination "HajiyevKanan won by checkmate"]

1. e4 {[%clk 0:03:00.9]} 1... c6 {[%clk 0:03:00.1]} 2. d4 {[%clk 0:03:00]} 2...
d5 {[%clk 0:03:01]} 3. e5 {[%clk 0:03:00.1]} 3... a6 {[%clk 0:03:00.9]} 4. c4
{[%clk 0:02:57.3]} 4... Bf5 {[%clk 0:03:00]} 5. Nc3 {[%clk 0:02:56.4]} 5... e6
{[%clk 0:03:00.2]} 6. g4 {[%clk 0:02:54.3]} 6... Bg6 {[%clk 0:03:00.2]} 7. h4
{[%clk 0:02:53.5]} 7... h5 {[%clk 0:03:00.4]} 8. g5 {[%clk 0:02:49.3]} 8... dxc4
{[%clk 0:02:53.5]} 9. Bxc4 {[%clk 0:02:48.8]} 9... Nd7 {[%clk 0:02:53.6]} 10.
Nge2 {[%clk 0:02:48.3]} 10... Ne7 {[%clk 0:02:52.3]} 11. Nf4 {[%clk 0:02:47.8]}
11... Nb6 {[%clk 0:02:45.8]} 12. Bb3 {[%clk 0:02:44.9]} 12... Bf5 {[%clk
0:02:42.2]} 13. Be3 {[%clk 0:02:43.2]} 13... g6 {[%clk 0:02:41.2]} 14. Qf3
{[%clk 0:02:41.6]} 14... Nbd5 {[%clk 0:02:34.5]} 15. Ne4 {[%clk 0:02:32.7]}
15... Bxe4 {[%clk 0:02:33.4]} 16. Qxe4 {[%clk 0:02:33.6]} 16... Nf5 {[%clk
0:02:31]} 17. O-O-O {[%clk 0:02:26.2]} 17... Be7 {[%clk 0:02:15.1]} 18. Kb1
{[%clk 0:02:23]} 18... O-O {[%clk 0:02:01.3]} 19. Rh3 {[%clk 0:02:16]} 19... a5
{[%clk 0:01:59.4]} 20. Bc2 {[%clk 0:02:09.5]} 20... Nxf4 {[%clk 0:01:40.5]} 21.
Bxf4 {[%clk 0:02:06.5]} 21... a4 {[%clk 0:01:38.2]} 22. Bc1 {[%clk 0:02:00.3]}
22... Qd5 {[%clk 0:01:35.3]} 23. Qe2 {[%clk 0:01:55.8]} 23... Nxd4 {[%clk
0:01:17.5]} 24. Rxd4 {[%clk 0:01:48.1]} 24... Qxd4 {[%clk 0:01:09]} 25. Rd3
{[%clk 0:01:48.6]} 25... Qxh4 {[%clk 0:01:06.1]} 26. Rd7 {[%clk 0:01:40]} 26...
Bxg5 {[%clk 0:01:06.3]} 27. f4 {[%clk 0:01:37]} 27... Bxf4 {[%clk 0:00:49.9]}
28. Rd4 {[%clk 0:01:34.1]} 28... Qh2 {[%clk 0:00:50.1]} 29. Qc4 {[%clk
0:01:14.4]} 29... Bxe5 {[%clk 0:00:45.7]} 30. Rd7 {[%clk 0:01:11.1]} 30... b5
{[%clk 0:00:43.6]} 31. Qe4 {[%clk 0:01:09]} 31... Bg7 {[%clk 0:00:29.9]} 32. Bg5
{[%clk 0:01:01.7]} 32... Qe5 {[%clk 0:00:26.8]} 33. Qxe5 {[%clk 0:00:48.5]}
33... Bxe5 {[%clk 0:00:27.7]} 34. Be4 {[%clk 0:00:46]} 34... Rac8 {[%clk
0:00:22.8]} 35. a3 {[%clk 0:00:43]} 35... Kg7 {[%clk 0:00:22.9]} 36. Kc2 {[%clk
0:00:40.1]} 36... Bf6 {[%clk 0:00:23.3]} 37. Bf4 {[%clk 0:00:39.2]} 37... g5
{[%clk 0:00:22.5]} 38. Be3 {[%clk 0:00:37.8]} 38... h4 {[%clk 0:00:22.7]} 39.
Bg2 {[%clk 0:00:37.4]} 39... Rfd8 {[%clk 0:00:20.3]} 40. Rb7 {[%clk 0:00:36.6]}
40... g4 {[%clk 0:00:15]} 41. Bb6 {[%clk 0:00:34.6]} 41... h3 {[%clk 0:00:14.6]}
42. Be4 {[%clk 0:00:32.1]} 42... Rd6 {[%clk 0:00:10.8]} 43. Bc7 {[%clk 0:00:29]}
43... Rd7 {[%clk 0:00:10.6]} 44. Rb6 {[%clk 0:00:23.6]} 44... Rdxc7 {[%clk
0:00:10.5]} 45. Ra6 {[%clk 0:00:23.8]} 45... g3 {[%clk 0:00:10.8]} 46. Rb6
{[%clk 0:00:24.1]} 46... g2 {[%clk 0:00:11.2]} 47. Bxg2 {[%clk 0:00:23.5]} 47...
hxg2 {[%clk 0:00:11.5]} 48. Rxc6 {[%clk 0:00:23.4]} 48... Rxc6+ {[%clk
0:00:12.4]} 49. Kb1 {[%clk 0:00:22.9]} 49... g1=Q+ {[%clk 0:00:09.4]} 50. Ka2
{[%clk 0:00:23.8]} 50... Bxb2 {[%clk 0:00:06.7]} 51. Kxb2 {[%clk 0:00:23.3]}
51... Rc2# {[%clk 0:00:06.9]} 0-1

[Event "Early-Titled-Tuesday-Blitz-March-19-2024"]
[Site "Chess.com"]
[Date "2024.03.19"]
[Round "10"]
[White "Szachulec75"]
[Black "stepanosinovsky"]
[Result "1-0"]
[WhiteElo "2242"]
[BlackElo "2334"]
[TimeControl "180+1"]
[EndTime "9:55:35 PDT"]
[Termination "Szachulec75 won on time"]

1. Nf3 {[%clk 0:03:00.9]} 1... Nf6 {[%clk 0:02:57.6]} 2. g3 {[%clk 0:03:00.4]}
2... g6 {[%clk 0:02:58.5]} 3. Bg2 {[%clk 0:03:00.6]} 3... Bg7 {[%clk 0:02:59.4]}
4. O-O {[%clk 0:03:00.2]} 4... O-O {[%clk 0:03:00.3]} 5. d3 {[%clk 0:03:00.4]}
5... d6 {[%clk 0:02:59.3]} 6. Nbd2 {[%clk 0:03:00]} 6... e5 {[%clk 0:02:59.1]}
7. e4 {[%clk 0:03:00.4]} 7... Nh5 {[%clk 0:02:56.1]} 8. c3 {[%clk 0:02:58.4]}
8... f5 {[%clk 0:02:54.9]} 9. exf5 {[%clk 0:02:52.6]} 9... Bxf5 {[%clk 0:02:54]}
10. Nc4 {[%clk 0:02:43]} 10... Kh8 {[%clk 0:02:45]} 11. h3 {[%clk 0:02:38.3]}
11... Nf6 {[%clk 0:02:41.9]} 12. Bg5 {[%clk 0:02:34.7]} 12... h6 {[%clk
0:02:29.4]} 13. Bxf6 {[%clk 0:02:33.6]} 13... Qxf6 {[%clk 0:02:24.9]} 14. Nh4
{[%clk 0:02:30.7]} 14... Bc8 {[%clk 0:02:17.5]} 15. f4 {[%clk 0:02:20.2]} 15...
exf4 {[%clk 0:01:57.1]} 16. Rxf4 {[%clk 0:02:06.7]} 16... Qg5 {[%clk 0:01:57.3]}
17. Rxf8+ {[%clk 0:02:02.5]} 17... Bxf8 {[%clk 0:01:58.2]} 18. Qf3 {[%clk
0:01:47.9]} 18... Bg7 {[%clk 0:01:45.7]} 19. Re1 {[%clk 0:01:47.4]} 19... Bd7
{[%clk 0:01:38]} 20. Qxb7 {[%clk 0:01:41.4]} 20... Qxg3 {[%clk 0:01:37.1]} 21.
Re3 {[%clk 0:01:29.7]} 21... Qxh4 {[%clk 0:01:26]} 22. Qxa8 {[%clk 0:01:28.1]}
22... Qd8 {[%clk 0:01:21.3]} 23. Qe4 {[%clk 0:00:55.9]} 23... Kh7 {[%clk
0:01:14.4]} 24. Qe7 {[%clk 0:00:56.3]} 24... Qg8 {[%clk 0:00:44.5]} 25. b3
{[%clk 0:00:51.8]} 25... Bf5 {[%clk 0:00:20.1]} 26. d4 {[%clk 0:00:49.8]} 26...
Nd7 {[%clk 0:00:18.7]} 27. Qe8 {[%clk 0:00:43.2]} 27... Nf8 {[%clk 0:00:16.8]}
28. Nd2 {[%clk 0:00:34.8]} 28... h5 {[%clk 0:00:14.5]} 29. Nf3 {[%clk
0:00:33.8]} 29... Bh6 {[%clk 0:00:14.7]} 30. Re7+ {[%clk 0:00:32.3]} 30... Kh8
{[%clk 0:00:14.2]} 31. Nh2 {[%clk 0:00:26.8]} 31... Bb1 {[%clk 0:00:12.2]} 32.
Nf1 {[%clk 0:00:26.1]} 32... Bxa2 {[%clk 0:00:11.5]} 33. Rxc7 {[%clk 0:00:23.8]}
33... Bxb3 {[%clk 0:00:10.6]} 34. Qe7 {[%clk 0:00:21.4]} 34... Bc4 {[%clk
0:00:09.1]} 35. Rxc4 {[%clk 0:00:20.1]} 35... Qxc4 {[%clk 0:00:08.5]} 36. Qf6+
{[%clk 0:00:18.3]} 36... Bg7 {[%clk 0:00:07.7]} 37. Qg5 {[%clk 0:00:17.1]} 37...
Qxc3 {[%clk 0:00:06.6]} 38. d5 {[%clk 0:00:15.8]} 38... a5 {[%clk 0:00:05.3]}
39. Nd2 {[%clk 0:00:09.1]} 39... a4 {[%clk 0:00:02.6]} 40. Ne4 {[%clk
0:00:09.5]} 40... Qd4+ {[%clk 0:00:02.1]} 41. Kh1 {[%clk 0:00:09]} 1-0

[Event "Early-Titled-Tuesday-Blitz-March-19-2024"]
[Site "Chess.com"]
[Date "2024.03.19"]
[Round "10"]
[White "SlavenPastar"]
[Black "CarlosjPineror"]
[Result "1-0"]
[WhiteElo "2574"]
[BlackElo "2680"]
[TimeControl "180+1"]
[EndTime "9:55:38 PDT"]
[Termination "SlavenPastar won by resignation"]

1. b3 {[%clk 0:03:00.9]} 1... c5 {[%clk 0:02:57.2]} 2. Bb2 {[%clk 0:03:01.1]}
2... Nf6 {[%clk 0:02:57.9]} 3. Nf3 {[%clk 0:03:00.5]} 3... b6 {[%clk 0:02:58]}
4. g3 {[%clk 0:02:49.2]} 4... Bb7 {[%clk 0:02:58.1]} 5. Bg2 {[%clk 0:02:49.7]}
5... e6 {[%clk 0:02:58.8]} 6. O-O {[%clk 0:02:49.9]} 6... Be7 {[%clk 0:02:59]}
7. c4 {[%clk 0:02:50.3]} 7... O-O {[%clk 0:02:59.2]} 8. d4 {[%clk 0:02:51]} 8...
d6 {[%clk 0:02:59.6]} 9. Nc3 {[%clk 0:02:48.1]} 9... a6 {[%clk 0:02:58.6]} 10.
d5 {[%clk 0:02:45.1]} 10... exd5 {[%clk 0:02:57.2]} 11. Nh4 {[%clk 0:02:45.2]}
11... Nbd7 {[%clk 0:02:41.5]} 12. Nf5 {[%clk 0:02:43.9]} 12... Re8 {[%clk
0:02:15.6]} 13. Nxd5 {[%clk 0:02:17.1]} 13... Nxd5 {[%clk 0:02:12.1]} 14. Bxd5
{[%clk 0:02:16.3]} 14... Bxd5 {[%clk 0:02:11.4]} 15. Qxd5 {[%clk 0:02:16]} 15...
Bf6 {[%clk 0:02:05.7]} 16. Bxf6 {[%clk 0:01:40.9]} 16... Nxf6 {[%clk 0:02:03.6]}
17. Qd3 {[%clk 0:01:36.9]} 17... d5 {[%clk 0:02:00.2]} 18. Rad1 {[%clk
0:01:34.2]} 18... d4 {[%clk 0:01:41.5]} 19. e3 {[%clk 0:01:34.2]} 19... g6
{[%clk 0:01:38.5]} 20. Nh4 {[%clk 0:01:06.4]} 20... Re4 {[%clk 0:01:37.9]} 21.
exd4 {[%clk 0:00:58.2]} 21... Rxd4 {[%clk 0:01:36.2]} 22. Qf3 {[%clk 0:00:58.2]}
22... Ra7 {[%clk 0:01:21.8]} 23. Rxd4 {[%clk 0:00:56.9]} 23... cxd4 {[%clk
0:01:22.7]} 24. Ng2 {[%clk 0:00:49.4]} 24... Rd7 {[%clk 0:01:20.8]} 25. Qd3
{[%clk 0:00:39.8]} 25... Rd6 {[%clk 0:01:19.9]} 26. Nf4 {[%clk 0:00:37.4]} 26...
Kg7 {[%clk 0:01:19.7]} 27. Rd1 {[%clk 0:00:37.2]} 27... Ng4 {[%clk 0:01:10.4]}
28. Qe4 {[%clk 0:00:33.3]} 28... f5 {[%clk 0:00:35.9]} 29. Qb7+ {[%clk
0:00:13.3]} 29... Qd7 {[%clk 0:00:34.5]} 30. Qxd7+ {[%clk 0:00:12.6]} 30... Rxd7
{[%clk 0:00:34.4]} 31. Rxd4 {[%clk 0:00:12.7]} 31... Rxd4 {[%clk 0:00:31.9]} 32.
Ne6+ {[%clk 0:00:12.7]} 32... Kf6 {[%clk 0:00:32.8]} 33. Nxd4 {[%clk 0:00:13.1]}
33... Ke5 {[%clk 0:00:33.7]} 34. Nf3+ {[%clk 0:00:12.1]} 34... Ke4 {[%clk
0:00:32.4]} 35. Ng5+ {[%clk 0:00:12]} 35... Kd3 {[%clk 0:00:33.2]} 36. Nxh7
{[%clk 0:00:11.7]} 36... Kc3 {[%clk 0:00:30.1]} 37. Nf8 {[%clk 0:00:11.4]} 37...
Ne5 {[%clk 0:00:29]} 38. f4 {[%clk 0:00:09.8]} 38... Nf3+ {[%clk 0:00:26.6]} 39.
Kg2 {[%clk 0:00:08.4]} 39... Nd4 {[%clk 0:00:27.5]} 40. Nxg6 {[%clk 0:00:08.3]}
40... Kb2 {[%clk 0:00:27.7]} 41. h4 {[%clk 0:00:08.8]} 41... Nc6 {[%clk
0:00:20.8]} 42. h5 {[%clk 0:00:08.8]} 42... Nd8 {[%clk 0:00:21.3]} 43. Ne5
{[%clk 0:00:08.2]} 43... Ne6 {[%clk 0:00:20.7]} 44. h6 {[%clk 0:00:08.3]} 44...
Nf8 {[%clk 0:00:20.3]} 45. b4 {[%clk 0:00:08]} 45... Kxa2 {[%clk 0:00:19.2]} 46.
c5 {[%clk 0:00:08.6]} 46... bxc5 {[%clk 0:00:18.7]} 47. bxc5 {[%clk 0:00:09.5]}
1-0